{"text_format":"3","workbook":"xlsx","n_sheets":6,"sheets":["SEMESTER","KREDITY","ROZPOČET","ČISTÉ MESAČNÉ VÝDAVKY","VÝDAVKY ZA SEMESTER","KNIHY"],"not_rendered":{"defined_names":21},"read":"whole","date_system":"1900"}

{"sheet":"SEMESTER","index":0,"n_rows":29,"n_cols":9,"rows_kept":29,"merged":[[2,3,2,4]]}
[null,"ROZVRH"]
[null,"ZIMNÝ SEMESTER"]
[null,null,"ČAS ZAČATIA","ČASOVÝ INTERVAL",null,"ROK"]
[null,null,"09:00:00",60,"(v minútach)"]
[null,"ČAS ","PO","UT","ST","ŠT","PI","SO","NE"]
[null,{"$f":"ČasZačatia+TIME(0,(ROW(A1)-1)*ČasovýInterval,0)","v":"09:00:00"},"Raňajky","Raňajky","Raňajky","Raňajky","Raňajky"]
[null,"10:00:00","Ekonómia: Prednášková budova B, miestnosť č. 256"]
[null,"11:00:00",{"$nulls":3},"Fyzika: Laboratórium \nv budove J, miestnosť č. 309"]
[null,"12:00:00"]
[null,"13:00:00"]
[null,"14:00:00"]
[null,"15:00:00"]
[null,"16:00:00"]
[null,"17:00:00"]
[null,"18:00:00"]
[null,"19:00:00"]
[null,"20:00:00"]
[null,"21:00:00"]
[null,"22:00:00"]
[null,"23:00:00"]
[null,1]
[null,1.0416666666666665]
[null,1.0833333333333335]
[null,1.125]
[null,1.1666666666666665]
[null,1.2083333333333335]
[null,1.25]
[null,1.2916666666666665]
[null,1.3333333333333335]

{"sheet":"KREDITY","index":1,"n_rows":17,"n_cols":8,"rows_kept":17}
[null,"VYSOKÁ ŠKOLA"]
[null,"PLÁNOVAČ KREDITOV"]
[null,"Názov titulu",{"$f":"Rok","v":"ROK"}]
[null,"CELKOVÝ PRIEBEH",null,"CELKOVÝ PRIEBEH"]
[null,{"$f":"AVERAGE(Predmety[HODNOTENIE])","v":3.5},{"$f":"IFERROR(TEXT(AVERAGEIF(Predmety[SPLNENÉ],\"Áno\",Predmety[HODNOTENIE]),\"0,00\"),\"0,00\")&\" Aktuálny študijný priemer\"","v":"3,50 Aktuálny študijný priemer"},{"$f":"COUNTIF(Predmety[SPLNENÉ],\"Áno\")/COUNTA(Predmety[NÁZOV PREDMETU])","v":0.6666666666666666},{"$f":"TEXT(COUNTIF(Predmety[SPLNENÉ],\"Áno\")/COUNTA(Predmety[NÁZOV PREDMETU]),\"0%\")&\" Splnené\"","v":"67% Splnené"}]
[null,"Poznámka: Nasledujúci prehľad kreditov sa automaticky vyplní na základe položiek v Tabuľke vysokoškolských predmetov, uvedenej nižšie"]
[null,"POŽIADAVKA","CELKOVÝ POČET KREDITOV","ZÍSKANÉ","POŽADOVANÉ"]
[null,"Hlavný odbor",{"$f":"IF(SUMIF(Predmety[POŽIADAVKA],KREDITY!$B8,Predmety[KREDITY])=0,\"0\",SUMIF(Predmety[POŽIADAVKA],KREDITY!$B8,Predmety[KREDITY]))","v":4},{"$f":"SUMIFS(Predmety[KREDITY],Predmety[POŽIADAVKA],KREDITY!$B8,Predmety[SPLNENÉ],\"Áno\")","v":4},{"$f":"SUMIF(Predmety[POŽIADAVKA],KREDITY!$B8,Predmety[KREDITY])-SUMIFS(Predmety[KREDITY],Predmety[POŽIADAVKA],KREDITY!$B8,Predmety[SPLNENÉ],\"Áno\")","v":0}]
[null,"Vedľajší odbor",{"$f":"IF(SUMIF(Predmety[POŽIADAVKA],KREDITY!$B9,Predmety[KREDITY])=0,\"0\",SUMIF(Predmety[POŽIADAVKA],KREDITY!$B9,Predmety[KREDITY]))","v":3},{"$f":"SUMIFS(Predmety[KREDITY],Predmety[POŽIADAVKA],KREDITY!$B9,Predmety[SPLNENÉ],\"Áno\")","v":0},{"$f":"SUMIF(Predmety[POŽIADAVKA],KREDITY!$B9,Predmety[KREDITY])-SUMIFS(Predmety[KREDITY],Predmety[POŽIADAVKA],KREDITY!$B9,Predmety[SPLNENÉ],\"Áno\")","v":3}]
[null,"Výberové predmety",{"$f":"IF(SUMIF(Predmety[POŽIADAVKA],KREDITY!$B10,Predmety[KREDITY])=0,\"0\",SUMIF(Predmety[POŽIADAVKA],KREDITY!$B10,Predmety[KREDITY]))","v":2},{"$f":"SUMIFS(Predmety[KREDITY],Predmety[POŽIADAVKA],KREDITY!$B10,Predmety[SPLNENÉ],\"Áno\")","v":2},{"$f":"SUMIF(Predmety[POŽIADAVKA],KREDITY!$B10,Predmety[KREDITY])-SUMIFS(Predmety[KREDITY],Predmety[POŽIADAVKA],KREDITY!$B10,Predmety[SPLNENÉ],\"Áno\")","v":0}]
[null,"Voliteľné predmety",{"$f":"IF(SUMIF(Predmety[POŽIADAVKA],KREDITY!$B11,Predmety[KREDITY])=0,\"0\",SUMIF(Predmety[POŽIADAVKA],KREDITY!$B11,Predmety[KREDITY]))","v":"0"},{"$f":"SUMIFS(Predmety[KREDITY],Predmety[POŽIADAVKA],KREDITY!$B11,Predmety[SPLNENÉ],\"Áno\")","v":0},{"$f":"SUMIF(Predmety[POŽIADAVKA],KREDITY!$B11,Predmety[KREDITY])-SUMIFS(Predmety[KREDITY],Predmety[POŽIADAVKA],KREDITY!$B11,Predmety[SPLNENÉ],\"Áno\")","v":0}]
[null,"Spolu",{"$f":"SUBTOTAL(109,KREDITY!$C$8:$C$11)","v":9},{"$f":"SUBTOTAL(109,KREDITY!$D$8:$D$11)","v":6},{"$f":"SUBTOTAL(109,KREDITY!$E$8:$E$11)","v":3}]
[null,"Predmety"]
[null,"NÁZOV PREDMETU","Č. PREDMETU","POŽIADAVKA","KREDITY","SPLNENÉ","HODNOTENIE","SEMESTER"]
[null,"Predmet 1","Číslo","Hlavný odbor",4,"Áno",{"v":4,"d":"4.0"},"Semester 1"]
[null,"Predmet 2","Číslo","Vedľajší odbor",3,"Nie",null,"Semester 1"]
[null,"Predmet 3","Číslo","Výberové predmety",2,"Áno",{"v":3,"d":"3.0"},"Semester 1"]

{"sheet":"ROZPOČET","index":2,"n_rows":15,"n_cols":4,"rows_kept":15,"merged":[[5,1,5,2]]}
[null,{"$f":"Vysoká_škola","v":"VYSOKÁ ŠKOLA"}]
[null,"SLEDOVANIE ROZPOČTU"]
[null,"Rozpočet",{"$f":"Rok","v":"ROK"}]
[null,"PERCENTUÁLNY PODIEL MINUTÝCH PRÍJMOV"]
[null,{"$f":"ČISTÉ_MESAČNÉ_VÝDAVKY/ČISTÉ_MESAČNÉ_PRÍJMY","v":{"v":0.7454545454545455,"d":"75%"}}]
[null,{"$f":"B5","v":0.7454545454545455}]
[null,"ČISTÝ MESAČNÝ PRÍJEM","ČISTÉ MESAČNÉ VÝDAVKY","ZOSTATOK"]
[null,{"$f":"C10","v":{"v":2750,"d":"2,750 €"}},{"$f":"'ČISTÉ MESAČNÉ VÝDAVKY'!C4+'VÝDAVKY ZA SEMESTER'!D4","v":{"v":2050,"d":"2,050 €"}},{"$f":"ČISTÉ_MESAČNÉ_PRÍJMY-ČISTÉ_MESAČNÉ_VÝDAVKY","v":{"v":700,"d":"700 €"}}]
[null,"Počet mesiacov v semestri",4]
[null,"MESAČNÉ PRÍJMY",{"$f":"SUM(MesačnéPríjmy[SUMA])","v":{"v":2750,"d":"2,750 €"}}]
[null,"POLOŽKA","SUMA"]
[null,"Fixný príjem",{"v":1500,"d":"1,500 €"}]
[null,"Finančná pomoc",{"v":500,"d":"500 €"}]
[null,"Pôžičky",{"v":500,"d":"500 €"}]
[null,"Iné príjmy",{"v":250,"d":"250 €"}]

{"sheet":"ČISTÉ MESAČNÉ VÝDAVKY","index":3,"n_rows":15,"n_cols":3,"rows_kept":15}
[null,{"$f":"Vysoká_škola","v":"VYSOKÁ ŠKOLA"}]
[null,"SLEDOVANIE ROZPOČTU"]
[null,"Mesačné výdavky",{"$f":"Rok","v":"ROK"}]
[null,"MESAČNÉ VÝDAVKY",{"$f":"SUM(MesačnéVýdavky[SUMA])","v":{"v":1675,"d":"1,675 €"}}]
[null,"POLOŽKA","SUMA"]
[null,"Nájomné",{"v":300,"d":"300 €"}]
[null,"Služby",{"v":50,"d":"50 €"}]
[null,"Mobilný telefón",{"v":75,"d":"75 €"}]
[null,"Potraviny",{"v":250,"d":"250 €"}]
[null,"Výdavky na auto",{"v":50,"d":"50 €"}]
[null,"Študentské pôžičky",{"v":500,"d":"500 €"}]
[null,"Kreditné karty",{"v":275,"d":"275 €"}]
[null,"Poistenie",{"v":125,"d":"125 €"}]
[null,"Zábava",{"v":50,"d":"50 €"}]
[null,"Rôzne",{"v":0,"d":"0 €"}]

{"sheet":"VÝDAVKY ZA SEMESTER","index":4,"n_rows":11,"n_cols":4,"rows_kept":11}
[null,{"$f":"Vysoká_škola","v":"VYSOKÁ ŠKOLA"}]
[null,"SLEDOVANIE ROZPOČTU"]
[null,"Výdavky za semester",{"$f":"Rok","v":"ROK"}]
[null,"VÝDAVKY ZA SEMESTER (Spolu/mesačne)",{"$f":"SUM(VýdavkyZaSemester[SUMA])","v":{"v":1500,"d":"1,500 €"}},{"$f":"SUM(VýdavkyZaSemester[MESAČNE])","v":{"v":375,"d":"375 €"}}]
[null,"POLOŽKA","SUMA","MESAČNE"]
[null,"Školné",{"v":750,"d":"750 €"},{"$f":"VýdavkyZaSemester[[#This Row],[SUMA]]/Mesiace_v_semestri","v":{"v":187.5,"d":"188 €"}}]
[null,"Poplatky za laboratóriá",{"v":250,"d":"250 €"},{"$f":"VýdavkyZaSemester[[#This Row],[SUMA]]/Mesiace_v_semestri","v":{"v":62.5,"d":"63 €"}}]
[null,"Knihy",{"v":500,"d":"500 €"},{"$f":"VýdavkyZaSemester[[#This Row],[SUMA]]/Mesiace_v_semestri","v":{"v":125,"d":"125 €"}}]
[null,"Vklady",{"v":0,"d":"0 €"},{"$f":"VýdavkyZaSemester[[#This Row],[SUMA]]/Mesiace_v_semestri","v":{"v":0,"d":"0 €"}}]
[null,"Doprava",{"v":0,"d":"0 €"},{"$f":"VýdavkyZaSemester[[#This Row],[SUMA]]/Mesiace_v_semestri","v":{"v":0,"d":"0 €"}}]
[null,"Ostatné poplatky",{"v":0,"d":"0 €"},{"$f":"VýdavkyZaSemester[[#This Row],[SUMA]]/Mesiace_v_semestri","v":{"v":0,"d":"0 €"}}]

{"sheet":"KNIHY","index":5,"n_rows":7,"n_cols":7,"rows_kept":7}
[null,{"$f":"Vysoká_škola","v":"VYSOKÁ ŠKOLA"}]
[null,"SLEDOVANIE LITERATÚRY"]
[null,"Zoznam kníh"]
[null,"NÁZOV","AUTOR","PREDMET","KDE SA DÁ KÚPIŤ?","ISBN","POZNÁMKY"]
[null,"Názov knihy","Autor","Predmet","Miesto","Číslo"]
[null,"Názov knihy","Autor","Predmet","Miesto","Číslo"]
[null,"Názov knihy","Autor","Predmet","Miesto","Číslo"]